lending/lending_fUSD_20241214
["ID","MTS","AMOUNT","RATE_DAILY","PERIOD"]
[345350781,1734172242010,-1006.35,0.0002123,2]
[345350782,1734172242020,-80048.86983457,0.00021247,2]
[345350783,1734172242030,-168.121419,0.00021248,9]
[345350784,1734172242041,-500.0,0.00021248,3]
[345350785,1734172242053,-250.34,0.00021248,3]
[345350786,1734172242064,-500.0,0.00021248,3]
[345350787,1734172242076,-588.2,0.00021248,3]
[345350788,1734172242088,-230.82,0.00021248,3]
[345350789,1734172242099,-500.0,0.00021248,3]
[345350790,1734172242110,-187.09211138,0.00021249,3]
[345350791,1734172242119,-631.73,0.00021249,2]
[345350792,1734172242131,-500.0,0.00021249,3]
[345350793,1734172242142,-274.22,0.00021249,3]
[345350794,1734172242152,-151.64,0.00021249,3]
[345350795,1734172242163,-150.121419,0.00021249,2]
[345350796,1734172242174,-150.121419,0.00021249,3]
[345350797,1734172242184,-150.121419,0.00021249,4]
[345350798,1734172242195,-500.0,0.00021249,3]
[345350799,1734172242205,-500.0,0.00021249,3]
[345350800,1734172242216,-500.0,0.00021249,3]
[345350801,1734172242227,-393.17,0.00021249,3]
[345350802,1734172242238,-150.121419,0.00021249,5]
[345350803,1734172242250,-150.121419,0.00021249,6]
[345350804,1734172242261,-150.121419,0.00021249,7]
[345350805,1734172242271,-150.121419,0.00021249,8]
[345350806,1734172242282,-150.121419,0.00021249,9]
[345350807,1734172242293,-1435.52125,0.00021249,2]
[345350808,1734172242303,-500.0,0.00021249,3]
[345350809,1734172242314,-500.0,0.00021249,3]
[345350810,1734172242324,-500.0,0.00021249,3]
[345350811,1734172242336,-500.0,0.00021249,3]
[345350812,1734172242346,-500.0,0.00021249,3]
[345350813,1734172242362,-576.1,0.00021249,3]
[345350814,1734172242378,-500.0,0.00021249,3]
[345350815,1734172242389,-500.0,0.00021249,3]
[345350816,1734172242399,-500.0,0.00021249,3]
[345350817,1734172242410,-492.772239,0.00021249,3]
[345350818,1734172242421,-500.0,0.00021249,3]
[345350819,1734172242432,-557.26,0.00021249,3]
[345350820,1734172242442,-500.0,0.00021249,3]
[345350822,1734172242453,-480.12,0.00021249,3]
[345350824,1734172242463,-500.0,0.00021249,3]
[345350826,1734172242474,-500.0,0.00021249,3]
[345350828,1734172242484,-500.0,0.00021249,3]
[345350829,1734172242495,-500.0,0.00021249,3]
[345350830,1734172242506,-500.0,0.00021249,3]
[345350831,1734172242516,-525.4,0.00021249,3]
[345350832,1734172242527,-500.0,0.00021249,3]
[345350833,1734172242537,-500.0,0.00021249,3]
[345350834,1734172242548,-500.0,0.00021249,3]
[345350835,1734172242559,-500.0,0.00021249,3]
[345350836,1734172242569,-500.0,0.00021249,3]
[345350837,1734172242580,-500.0,0.00021249,3]
[345350838,1734172242591,-500.0,0.00021249,3]
[345350839,1734172242606,-500.0,0.00021249,3]
[345350840,1734172242616,-500.0,0.00021249,3]
[345350841,1734172242627,-500.0,0.00021249,3]
[345350842,1734172242637,-500.0,0.00021249,3]
[345350843,1734172242648,-500.0,0.00021249,3]
[345350844,1734172242658,-500.0,0.00021249,3]
[345350845,1734172242668,-500.0,0.00021249,3]
[345350846,1734172242679,-542.27,0.00021249,3]
[345350847,1734172242690,-500.0,0.00021249,3]
[345350848,1734172242700,-500.0,0.00021249,3]
[345350849,1734172242711,-500.0,0.00021249,3]
[345350850,1734172242722,-500.0,0.00021249,3]
[345350851,1734172242732,-500.0,0.00021249,3]
[345350852,1734172242743,-500.0,0.00021249,3]
[345350853,1734172242754,-500.0,0.00021249,3]
[345350854,1734172242765,-500.0,0.00021249,3]
[345350855,1734172242775,-500.0,0.00021249,3]
[345350856,1734172242786,-500.0,0.00021249,3]
[345350857,1734172242797,-500.0,0.00021249,3]
[345350858,1734172242808,-500.0,0.00021249,3]
[345350859,1734172242819,-306.99278418,0.00021249,3]
[345350860,1734172242830,-500.0,0.00021249,3]
[345350861,1734172242840,-500.0,0.00021249,3]
[345350862,1734172242854,-500.0,0.00021249,3]
[345350863,1734172242865,-500.0,0.00021249,3]
[345350864,1734172242875,-500.0,0.00021249,3]
[345350865,1734172242886,-500.0,0.00021249,3]
[345350866,1734172242897,-273.97210326,0.00021249,3]
[345350867,1734172243018,-160905.03454297,0.0002125,4]
[345350868,1734172243066,-6283.1812228,0.0002125,2]
[345350870,1734172243076,-4633.6645752,0.0002125,2]
[345350872,1734172243086,-1000.0,0.0002125,2]
[345350873,1734172243095,-1000.0,0.0002125,4]
[345350874,1734172243108,-1000.0,0.0002125,10]
[345350875,1734172243117,-212807.0,0.0002125,2]
[345350876,1734172243127,-12762902.0083767,0.0002125,2]
[345350877,1734172243307,-476.83737207,0.00021199,3]
[345350878,1734172243321,-132.61262793,0.00021199,3]
[345350879,1734172243330,-1513.58465616,0.0002125,2]
[345350880,1734172243341,-696.5003099,0.0002125,2]
[345350881,1734172243450,-545.0,0.00020182,2]
[345350882,1734172243460,-236.27465,0.00020866,2]
[345350883,1734172243474,-395.72535,0.00020866,2]
[345350884,1734172243484,-148.12800914,0.00021199,3]
[345350885,1734172243495,-351.87199086,0.00021199,3]
[345350886,1734172243504,-500.0,0.00021199,3]
[345350887,1734172243513,-500.0,0.00021199,3]
[345350888,1734172243523,-7.12800914,0.00021199,3]
[345350889,1734172243542,-492.87199086,0.00021199,3]
[345350890,1734172243552,-500.0,0.00021199,3]
[345350891,1734172243561,-500.0,0.00021199,3]
[345350892,1734172243571,-2145.63255811,0.0002125,2]
[345350893,1734172243582,-4957.455944,0.0002125,2]
[345350894,1734172243593,-4112.03652506,0.0002125,2]
[345350906,1734172245464,-188.68772696,0.00021248,3]
[345350907,1734172245475,-8110.73785011,0.0002125,2]
[345350908,1734172245607,-280.90838825,0.0002125,2]
[345350909,1734172245619,-4607.0,0.0002125,2]
[345350910,1734172245694,-11700.03969705,0.0002125,2]
[345350911,1734172245771,-753.89196866,0.0002125,2]
[345350912,1734172245806,-2511.04781463,0.0002125,2]
[345350913,1734172307550,160.37,0.00013699,2]
[345350914,1734172342825,500.0,0.00017414,2]
[345350917,1734173066860,155.82,0.00010137,2]
[345350918,1734173228148,-336.9001302,0.00016089,2]
[345350919,1734173228168,-173.42,0.00016289,2]
[345350920,1734173228188,-175.63,0.00016289,2]
[345350921,1734173228208,-175.42,0.00016712,2]
[345350922,1734173228232,-155.82,0.00017184,2]
[345350923,1734173228252,-185.44393989,0.00017644,2]
[345350924,1734173350137,-314.55606011,0.00017644,2]
[345350925,1734173350158,-240.19801683,0.00018017,2]
[345350926,1734173355103,-2434.03330876,0.00018017,2]
[345350931,1734173431728,-744.43,0.00018117,2]
[345350932,1734173431738,-150.0,0.00019507,2]
[345350933,1734173431748,-500.0,0.00019606,2]
[345350934,1734173431757,-245.98786084,0.00019606,2]
[345350935,1734173431770,-1841.10213916,0.00019606,2]
[345350936,1734173431779,-174.08,0.00019885,2]
[345350937,1734173431788,-1627.55320432,0.00019982,2]
[345350942,1734173437587,-462.79679568,0.00019982,2]
[345350943,1734173437597,-250.0,0.00020015,2]
[345350944,1734173437606,-200.0,0.00020022,2]
[345350945,1734173437615,-1000.0,0.00020035,2]
[345350946,1734173437623,-224.9,0.00020035,2]
[345350947,1734173437632,-1000.46,0.00020037,2]
[345350948,1734173437642,-139.71383515,0.00020068,2]
[345350949,1734173437694,-330.30616485,0.00020068,2]
[345350950,1734173437703,-190.0,0.00020068,2]
[345350951,1734173437712,-307.2,0.00020103,2]
[345350952,1734173437721,-173.1,0.00020158,30]
[345350953,1734173437735,-252.151,0.0002019,2]
[345350954,1734173437744,-719.04,0.00020229,2]
[345350955,1734173437754,-167.36,0.00020362,2]
[345350956,1734173437764,-1500.0,0.00020362,2]
[345350957,1734173437773,-744.43,0.00020381,2]
[345350958,1734173437782,-150.0,0.00020548,5]
[345350959,1734173437791,-150.0,0.00020548,5]
[345350960,1734173437800,-1500.0,0.000208,2]
[345350961,1734173437809,-1047.33675906,0.00020825,2]
[345350962,1734173437819,-1058.53941877,0.00020825,2]
[345350963,1734173437827,-307.2,0.00020847,2]
[345350964,1734173437836,-460.621,0.00020997,2]
[345350965,1734173437845,-18865.86,0.00021,2]
[345350966,1734173437855,-1000.0,0.00021024,7]
[345350967,1734173437864,-1631.30267,0.0002104,2]
[345350968,1734173437874,-500.0,0.0002108,2]
[345350969,1734173437883,-1500.0,0.00021096,14]
[345350970,1734173437892,-150.0,0.00021096,5]
[345350971,1734173437901,-1500.0,0.00021101,14]
[345350972,1734173437910,-1500.0,0.00021105,14]
[345350973,1734173437919,-1500.0,0.0002111,14]
[345350974,1734173437928,-1500.0,0.00021114,14]
[345350975,1734173437937,-1500.0,0.00021119,14]
[345350976,1734173437946,-1500.0,0.00021124,14]
[345350977,1734173437955,-1500.0,0.00021128,14]
[345350978,1734173437964,-1500.0,0.00021133,14]
[345350979,1734173437973,-1500.0,0.00021138,14]
[345350980,1734173437982,-1500.0,0.00021142,14]
[345350981,1734173437991,-1500.0,0.00021147,14]
[345350982,1734173438001,-1500.0,0.00021152,14]
[345350983,1734173438010,-1500.0,0.00021156,14]
[345350984,1734173438019,-1500.0,0.00021161,14]
[345350985,1734173438028,-1500.0,0.00021166,14]
[345350986,1734173438037,-1500.0,0.0002117,14]
[345350987,1734173438046,-1500.0,0.00021175,14]
[345350988,1734173438056,-1500.0,0.00021179,14]
[345350989,1734173438065,-1500.0,0.00021184,14]
[345350990,1734173438074,-50000.0,0.00021185,2]
[345350991,1734173438083,-1500.0,0.00021189,14]
[345350992,1734173438092,-1500.0,0.00021193,14]
[345350993,1734173438101,-728.74,0.00021198,3]
[345350994,1734173438110,-500.0,0.00021198,3]
[345350995,1734173438119,-500.0,0.00021198,3]
[345350996,1734173438128,-500.0,0.00021198,3]
[345350997,1734173438137,-500.0,0.00021198,3]
[345350998,1734173438146,-500.0,0.00021198,3]
[345350999,1734173438155,-500.0,0.00021198,3]
[345351000,1734173438164,-635.66,0.00021198,3]
[345351001,1734173438173,-500.0,0.00021198,3]
[345351002,1734173438182,-500.0,0.00021198,3]
[345351003,1734173438191,-500.0,0.00021198,3]
[345351004,1734173438200,-500.0,0.00021198,3]
[345351005,1734173438209,-500.0,0.00021198,3]
[345351006,1734173438218,-500.0,0.00021198,3]
[345351007,1734173438227,-551.17,0.00021198,3]
[345351008,1734173438236,-500.0,0.00021198,3]
[345351009,1734173438244,-500.0,0.00021198,3]
[345351010,1734173438254,-500.0,0.00021198,3]
[345351011,1734173438263,-389.11819751,0.00021198,3]
[345351012,1734173438272,-500.0,0.00021198,3]
[345351013,1734173438280,-450.29372627,0.00021198,3]
[345351014,1734173438289,-500.0,0.00021198,3]
[345351015,1734173438298,-500.0,0.00021198,3]
[345351016,1734173438308,-500.0,0.00021198,3]
[345351017,1734173438317,-500.0,0.00021198,3]
[345351018,1734173438326,-500.0,0.00021198,3]
[345351019,1734173438336,-500.0,0.00021198,3]
[345351020,1734173438345,-500.0,0.00021198,3]
[345351021,1734173438354,-506.03087572,0.00021198,3]
[345351022,1734173438363,-444.69095603,0.00021198,3]
[345351023,1734173438372,-500.0,0.00021198,3]
[345351024,1734173438381,-500.0,0.00021198,3]
[345351025,1734173438391,-380.86,0.00021198,3]
[345351026,1734173438401,-500.0,0.00021198,3]
[345351027,1734173438411,-500.0,0.00021198,3]
[345351028,1734173438420,-500.0,0.00021198,3]
[345351029,1734173438429,-151.64,0.00021198,3]
[345351030,1734173438438,-500.0,0.00021198,3]
[345351031,1734173438448,-500.0,0.00021198,3]
[345351032,1734173438457,-500.0,0.00021198,3]
[345351033,1734173438470,-500.0,0.00021198,3]
[345351034,1734173438479,-504.05904739,0.00021198,3]
[345351035,1734173438488,-500.0,0.00021198,3]
[345351036,1734173438497,-500.0,0.00021198,3]
[345351037,1734173438505,-524.11,0.00021198,3]
[345351038,1734173438515,-500.0,0.00021198,3]
[345351039,1734173438524,-500.0,0.00021198,3]
[345351040,1734173438532,-500.0,0.00021198,3]
[345351041,1734173438544,-500.0,0.00021198,3]
[345351042,1734173438553,-500.0,0.00021198,3]
[345351043,1734173438563,-500.0,0.00021198,3]
[345351044,1734173438572,-500.0,0.00021198,3]
[345351045,1734173438581,-500.0,0.00021198,3]
[345351046,1734173438590,-500.0,0.00021198,3]
[345351047,1734173438599,-500.0,0.00021198,3]
[345351048,1734173438608,-500.0,0.00021198,3]
[345351049,1734173438616,-500.0,0.00021198,3]
[345351050,1734173438625,-500.0,0.00021198,3]
[345351051,1734173438635,-1500.0,0.00021198,14]
[345351052,1734173438647,-501.37183265,0.00021199,3]
[345351053,1734173438656,-500.39283226,0.00021199,3]
[345351054,1734173438665,-500.20141762,0.00021199,2]
[345351055,1734173438674,-501.39172779,0.00021199,3]
[345351056,1734173438683,-501.36116629,0.00021199,3]
[345351057,1734173438692,-504.80864333,0.00021199,3]
[345351058,1734173438701,-500.15818293,0.00021199,3]
[345351059,1734173438712,-150.94332578,0.00021199,3]
[345351060,1734173438721,-500.77260022,0.00021199,3]
[345351061,1734173438731,-221.65636441,0.00021199,3]
[345351062,1734173438740,-187.09211138,0.00021199,3]
[345351063,1734173438749,-500.0,0.00021199,3]
[345351064,1734173438759,-500.0,0.00021199,3]
[345351065,1734173438768,-500.0,0.00021199,3]
[345351066,1734173438777,-586.55,0.00021199,3]
[345351067,1734173438787,-642.84,0.00021199,3]
[345351068,1734173438795,-500.0,0.00021199,3]
[345351069,1734173438805,-500.0,0.00021199,3]
[345351070,1734173438814,-500.0,0.00021199,3]
[345351071,1734173438824,-614.51993538,0.00021199,2]
[345351072,1734173438833,-500.0,0.00021199,3]
[345351073,1734173438842,-500.0,0.00021199,3]
[345351074,1734173438852,-586.67,0.00021199,3]
[345351075,1734173438862,-514.24,0.00021199,3]
[345351076,1734173438871,-272.64,0.00021199,3]
[345351077,1734173438880,-500.0,0.00021199,3]
[345351078,1734173438889,-357.09,0.00021199,3]
[345351079,1734173438899,-500.0,0.00021199,3]
[345351080,1734173438908,-500.0,0.00021199,3]
[345351081,1734173438917,-500.0,0.00021199,3]
[345351082,1734173438927,-500.0,0.00021199,3]
[345351083,1734173438936,-500.0,0.00021199,3]
[345351084,1734173438946,-391.55,0.00021199,3]
[345351085,1734173438955,-500.0,0.00021199,3]
[345351086,1734173438967,-526.58586258,0.00021199,3]
[345351087,1734173438976,-264.03,0.000212,2]
[345351088,1734173438985,-468.0,0.000212,9]
[345351089,1734173438996,-1500.0,0.00021203,14]
[345351090,1734173439005,-1500.0,0.00021207,14]
[345351091,1734173439015,-1500.0,0.00021212,14]
[345351092,1734173439024,-1500.0,0.00021217,14]
[345351093,1734173439034,-1500.0,0.00021221,14]
[345351094,1734173439043,-1500.0,0.00021226,14]
[345351095,1734173439052,-1500.0,0.00021231,14]
[345351096,1734173439061,-1500.0,0.00021235,14]
[345351097,1734173439070,-1500.0,0.0002124,14]
[345351098,1734173439079,-1500.0,0.00021244,14]
[345351099,1734173439088,-500.0,0.00021248,3]
[345351100,1734173439097,-500.0,0.00021248,3]
[345351101,1734173439106,-500.0,0.00021248,3]
[345351102,1734173439115,-500.0,0.00021248,3]
[345351103,1734173439125,-500.0,0.00021248,3]
[345351104,1734173439134,-500.0,0.00021248,3]
[345351105,1734173439144,-277.19,0.00021248,3]
[345351106,1734173439153,-500.0,0.00021248,3]
[345351107,1734173439163,-500.0,0.00021248,3]
[345351108,1734173439171,-500.0,0.00021248,3]
[345351109,1734173439181,-500.0,0.00021248,3]
[345351110,1734173439190,-500.0,0.00021248,3]
[345351111,1734173439199,-500.0,0.00021248,3]
[345351112,1734173439211,-500.0,0.00021248,3]
[345351113,1734173439221,-433.56,0.00021248,3]
[345351114,1734173439231,-500.0,0.00021248,3]
[345351115,1734173439240,-152.237564,0.00021248,3]
[345351116,1734173439249,-500.0,0.00021248,3]
[345351117,1734173439258,-500.0,0.00021248,3]
[345351118,1734173439267,-382.91,0.00021248,3]
[345351119,1734173439278,-10624.07170042,0.00021249,3]
[345351120,1734173439287,-988.53,0.00021249,2]
[345351121,1734173439296,-150.121419,0.00021249,9]
[345351122,1734173439305,-150.121419,0.00021249,8]
[345351123,1734173439315,-150.121419,0.00021249,7]
[345351124,1734173439324,-150.121419,0.00021249,6]
[345351125,1734173439334,-150.121419,0.00021249,5]
[345351126,1734173439343,-150.121419,0.00021249,4]
[345351127,1734173439352,-150.121419,0.00021249,3]
[345351128,1734173439362,-150.121419,0.00021249,2]
[345351129,1734173439371,-334.48730215,0.00021249,3]
[345351130,1734173439380,-631.73,0.00021249,2]
[345351131,1734173439390,-500.0,0.00021249,3]
[345351132,1734173439402,-437.5,0.00021249,3]
[345351133,1734173439411,-500.0,0.00021249,3]
[345351134,1734173439420,-153.54,0.00021249,3]
[345351135,1734173439429,-500.0,0.00021249,3]
[345351136,1734173439439,-500.0,0.00021249,3]
[345351137,1734173439448,-510.06,0.00021249,3]
[345351138,1734173439459,-500.0,0.00021249,3]
[345351139,1734173439470,-500.0,0.00021249,3]
[345351141,1734173439480,-500.0,0.00021249,3]
[345351142,1734173439489,-500.0,0.00021249,3]
[345351143,1734173439498,-500.0,0.00021249,3]
[345351144,1734173439507,-500.0,0.00021249,3]
[345351145,1734173439516,-274.22,0.00021249,3]
[345351146,1734173439525,-574.68,0.00021249,3]
[345351147,1734173439534,-500.0,0.00021249,3]
[345351148,1734173439543,-500.0,0.00021249,3]
[345351149,1734173439553,-500.0,0.00021249,3]
[345351150,1734173439563,-583.38,0.00021249,3]
[345351151,1734173439572,-500.0,0.00021249,3]
[345351152,1734173439581,-571.21264844,0.00021249,3]
[345351153,1734173439590,-2000.0,0.00021249,2]
[345351154,1734173439599,-378.34649564,0.00021249,3]
[345351155,1734173439608,-500.0,0.00021249,3]
[345351156,1734173439618,-500.0,0.00021249,3]
[345351158,1734173439627,-500.0,0.00021249,3]
[345351159,1734173439636,-577.12,0.00021249,3]
[345351161,1734173439645,-334.66,0.00021249,3]
[345351163,1734173439654,-500.0,0.00021249,3]
[345351164,1734173439663,-500.0,0.00021249,3]
[345351165,1734173439673,-331.17,0.00021249,3]
[345351166,1734173439682,-500.0,0.00021249,3]
[345351167,1734173439691,-500.0,0.00021249,3]
[345351168,1734173439700,-500.0,0.00021249,3]
[345351169,1734173439709,-500.0,0.00021249,3]
[345351170,1734173439718,-500.0,0.00021249,3]
[345351171,1734173439727,-500.0,0.00021249,3]
[345351172,1734173439737,-500.0,0.00021249,3]
[345351173,1734173439746,-500.0,0.00021249,3]
[345351174,1734173439756,-246.1,0.00021249,3]
[345351175,1734173439888,-500.0,0.00021249,3]
[345351176,1734173439898,-500.0,0.00021249,3]
[345351177,1734173439908,-500.0,0.00021249,3]
[345351178,1734173439917,-500.0,0.00021249,3]
[345351179,1734173439927,-500.0,0.00021249,3]
[345351180,1734173439936,-633.28,0.00021249,3]
[345351181,1734173439945,-500.0,0.00021249,3]
[345351182,1734173439955,-500.0,0.00021249,3]
[345351183,1734173439966,-500.0,0.00021249,3]
[345351184,1734173439975,-500.0,0.00021249,3]
[345351185,1734173439984,-500.0,0.00021249,3]
[345351186,1734173439994,-500.0,0.00021249,3]
[345351187,1734173440003,-500.0,0.00021249,3]
[345351188,1734173440013,-500.0,0.00021249,3]
[345351189,1734173440022,-500.0,0.00021249,3]
[345351190,1734173440031,-500.0,0.00021249,3]
[345351191,1734173440041,-500.0,0.00021249,3]
[345351192,1734173440051,-234.33,0.00021249,3]
[345351193,1734173440060,-500.0,0.00021249,3]
[345351194,1734173440069,-500.0,0.00021249,3]
[345351195,1734173440079,-500.0,0.00021249,3]
[345351196,1734173440088,-500.0,0.00021249,3]
[345351197,1734173440098,-500.0,0.00021249,3]
[345351198,1734173440107,-231.84,0.00021249,3]
[345351199,1734173440116,-500.0,0.00021249,3]
[345351200,1734173440126,-500.0,0.00021249,3]
[345351201,1734173440136,-500.0,0.00021249,3]
[345351202,1734173440145,-500.0,0.00021249,3]
[345351203,1734173440154,-500.0,0.00021249,3]
[345351204,1734173440164,-500.0,0.00021249,3]
[345351205,1734173440172,-500.0,0.00021249,3]
[345351206,1734173440181,-500.0,0.00021249,3]
[345351207,1734173440191,-500.0,0.00021249,3]
[345351208,1734173440199,-500.0,0.00021249,3]
[345351209,1734173440210,-500.0,0.00021249,3]
[345351210,1734173440219,-189.52,0.00021249,3]
[345351211,1734173440228,-500.0,0.00021249,3]
[345351212,1734173440238,-500.0,0.00021249,3]
[345351213,1734173440247,-500.0,0.00021249,3]
[345351214,1734173440256,-500.0,0.00021249,3]
[345351215,1734173440266,-500.0,0.00021249,3]
[345351216,1734173440276,-500.0,0.00021249,3]
[345351217,1734173440285,-500.0,0.00021249,3]
[345351218,1734173440294,-500.0,0.00021249,3]
[345351219,1734173440303,-500.0,0.00021249,3]
[345351220,1734173440312,-259.41,0.00021249,3]
[345351221,1734173440322,-518.54851467,0.00021249,3]
[345351222,1734173440330,-500.0,0.00021249,3]
[345351223,1734173440339,-500.0,0.00021249,3]
[345351224,1734173440349,-500.0,0.00021249,3]
[345351225,1734173440358,-500.0,0.00021249,3]
[345351226,1734173440367,-500.0,0.00021249,3]
[345351227,1734173440377,-500.0,0.00021249,3]
[345351228,1734173440386,-599.5,0.00021249,3]
[345351229,1734173440399,-647.4194579,0.00021249,3]
[345351230,1734173440408,-500.0,0.00021249,3]
[345351231,1734173440417,-500.0,0.00021249,3]
[345351232,1734173440426,-500.0,0.00021249,3]
[345351233,1734173440435,-500.0,0.00021249,3]
[345351234,1734173440445,-493.33,0.00021249,3]
[345351235,1734173440454,-500.0,0.00021249,3]
[345351236,1734173440467,-500.0,0.00021249,3]
[345351237,1734173440476,-500.0,0.00021249,3]
[345351238,1734173440485,-500.0,0.00021249,3]
[345351239,1734173440494,-500.0,0.00021249,3]
[345351240,1734173440504,-500.0,0.00021249,3]
[345351241,1734173440513,-500.0,0.00021249,3]
[345351242,1734173440522,-500.0,0.00021249,3]
[345351243,1734173440531,-500.0,0.00021249,3]
[345351244,1734173440540,-500.0,0.00021249,3]
[345351245,1734173440549,-500.0,0.00021249,3]
[345351246,1734173440559,-500.0,0.00021249,3]
[345351247,1734173440567,-519.83,0.00021249,3]
[345351248,1734173440576,-500.0,0.00021249,3]
[345351249,1734173440586,-500.0,0.00021249,3]
[345351250,1734173440595,-500.0,0.00021249,3]
[345351251,1734173440604,-500.0,0.00021249,3]
[345351252,1734173440612,-632.77457134,0.00021249,3]
[345351253,1734173440622,-192.12213681,0.00021249,3]
[345351254,1734173440631,-500.0,0.00021249,3]
[345351255,1734173440641,-500.0,0.00021249,3]
[345351256,1734173440649,-500.0,0.00021249,3]
[345351257,1734173440659,-363.3206238,0.00021249,3]
[345351258,1734173440667,-442.88,0.00021249,3]
[345351259,1734173440676,-510.68,0.00021249,3]
[345351260,1734173440685,-500.0,0.00021249,3]
[345351261,1734173440695,-500.0,0.00021249,3]
[345351262,1734173440703,-500.0,0.00021249,3]
[345351263,1734173440713,-185.66,0.00021249,3]
[345351264,1734173440722,-500.0,0.00021249,3]
[345351265,1734173440731,-500.0,0.00021249,3]
[345351266,1734173440740,-500.0,0.00021249,3]
[345351267,1734173440749,-500.0,0.00021249,3]
[345351268,1734173440758,-207.9,0.00021249,3]
[345351269,1734173440767,-500.0,0.00021249,3]
[345351270,1734173440776,-500.0,0.00021249,3]
[345351271,1734173440786,-500.0,0.00021249,3]
[345351272,1734173440795,-890.0,0.00021249,2]
[345351273,1734173440804,-500.0,0.00021249,3]
[345351274,1734173440813,-500.0,0.00021249,3]
[345351275,1734173440822,-500.0,0.00021249,3]
[345351276,1734173440831,-500.0,0.00021249,3]
[345351277,1734173440840,-500.0,0.00021249,3]
[345351278,1734173440849,-500.0,0.00021249,3]
[345351279,1734173440858,-500.0,0.00021249,3]
[345351280,1734173440867,-500.0,0.00021249,3]
[345351281,1734173440876,-500.0,0.00021249,3]
[345351282,1734173440885,-500.0,0.00021249,3]
[345351283,1734173440894,-342.74,0.00021249,3]
[345351284,1734173440903,-500.0,0.00021249,3]
[345351285,1734173440912,-500.0,0.00021249,3]
[345351286,1734173440921,-500.0,0.00021249,3]
[345351287,1734173440930,-630.34,0.00021249,3]
[345351288,1734173440939,-500.0,0.00021249,3]
[345351289,1734173440948,-272.55668371,0.00021249,3]
[345351290,1734173440957,-500.0,0.00021249,3]
[345351291,1734173440967,-500.0,0.00021249,3]
[345351292,1734173440976,-500.0,0.00021249,3]
[345351293,1734173440985,-570.01,0.00021249,3]
[345351294,1734173440994,-643.82490509,0.00021249,3]
[345351295,1734173441003,-500.0,0.00021249,3]
[345351296,1734173441012,-500.0,0.00021249,3]
[345351297,1734173441020,-500.0,0.00021249,3]
[345351298,1734173441029,-500.0,0.00021249,3]
[345351299,1734173441038,-500.0,0.00021249,3]
[345351300,1734173441047,-500.0,0.00021249,3]
[345351301,1734173441056,-500.0,0.00021249,3]
[345351302,1734173441064,-500.0,0.00021249,3]
[345351303,1734173441073,-500.0,0.00021249,3]
[345351304,1734173441082,-500.0,0.00021249,3]
[345351305,1734173441091,-500.0,0.00021249,3]
[345351306,1734173441100,-500.0,0.00021249,3]
[345351307,1734173441109,-500.0,0.00021249,3]
[345351308,1734173441118,-500.0,0.00021249,3]
[345351309,1734173441127,-500.0,0.00021249,3]
[345351310,1734173441136,-500.0,0.00021249,3]
[345351311,1734173441146,-226.04,0.00021249,3]